Cogmind - Beta 10.1 @@@ ROGUE MODE // 2020.10.12 @ 15:23:09 Player: GammaGradiation Result: Destroyed by H-88 Terminator with KE Penetrator Performance ------------- Evolutions (8) 4000 Regions Visited (21) 4200 Robots Destroyed (136) 680 Value Destroyed (4916) 4916 Prototype IDs (54) 1080 Alien Tech Used (0) 0 Bonus (1845) 1845 TOTAL SCORE: 16721 Bonus ------- High Alert Combat Kills 345 Follower Combat Kills 301 Aligned with FarCom 300 Met Data Miner 300 Met Warlord at Base 500 MAIN.C Attacked Warlord 500 Friendly Fire -401 Cogmind --------- Core Integrity 0/1450 Matter 300/300 Energy 100/100 System Corruption 20% Temperature Cool (0) Movement Core (50) Location -2/Research Parts ------- > --- POWER (1) -------- (None) > --- PROPULSION (6) --- (None) > --- UTILITY (12) ----- (None) > --- WEAPON (4) ------- (None) > --- INVENTORY (4) ---- Experimental Energy Well (1000) Peak State ------------ > --- POWER ------------ Micro Fission Core > --- PROPULSION ------- Advanced Heavy Treads Myomer Leg Myomer Leg Myomer Leg Experimental Myomer Leg > --- UTILITY ---------- High-capacity Storage Unit Improved Energy Well Improved Signal Interpreter Advanced Terrain Scan Processor Improved Targeting Computer Advanced Targeting Computer Improved Armor Integrity Analyzer Centrium Light Armor Plating Thermal Barrier Force Field Improved Hacking Suite System Mapper > --- WEAPON ----------- Gamma Rifle Heavy Neutron Cannon Coil Gun Coil Gun > --- INVENTORY -------- Particle Reactor Enhanced Biometal Leg Advanced Heat Sink Small Battery Experimental Energy Well Terrain Scan Processor Gamma Rifle Coil Gun Coil Gun Hypervelocity Coil Gun Welding Torch Axe [Rating: 146] Favorites ----------- Power Improved Ion Engine Engine Improved Ion Engine Power Core Micro Fission Core Reactor Light Antimatter Reactor Propulsion Aluminum Leg Treads Advanced Heavy Treads Leg Aluminum Leg Utility High-capacity Storage Unit Device Advanced Heat Sink Storage High-capacity Storage Unit Processor Advanced Terrain Scan Processor Hackware Hacking Suite Protection Light Regenerative Plating Weapon Coil Gun Energy Gun EM Pulse Gun Energy Cannon Cooled Plasma Cannon Ballistic Gun Coil Gun Ballistic Cannon AWS/Autocannon Launcher Improved Grenade Launcher Special Weapon Welding Torch Slashing Weapon Axe Build | -11 -10 -10 -10 -9 -8 -8 -8 -6 -6 -6 -6 -6 -6 -5 -5 -4 -4 -4 -3 -3 -2 ------- Run | Scr Mat Min Exi Min Mat Sto Rec Fac Was Fac Low Low Dat Pro Fac Fac Upp War Pro Res Res Slots Evolved 16 | . . . . . 4 . . 4 . . . . . . 2 2 . . . 2 2 Power . | . . . . . . . . . . . . . . . . . . . . . . Propulsion 4 | . . . . . 2 . . 1 . . . . . . . . . . . . 1 Utility 10 | . . . . . 1 . . 3 . . . . . . 2 2 . . . 1 1 Weapon 2 | . . . . . 1 . . . . . . . . . . . . . . 1 . Parts Attached 198 | 6 3 . 1 . 25 34 1 15 2 18 5 5 . 9 11 9 . 14 16 4 20 Power 10 | 1 . . . . 1 2 . 1 . 1 . . . . 1 1 . 1 1 . . Engine 5 | 1 . . . . 1 2 . . . 1 . . . . . . . . . . . Core 1 | . . . . . . . . . . . . . . . . . . . 1 . . Reactor 4 | . . . . . . . . 1 . . . . . . 1 1 . 1 . . . Propulsion 44 | 2 . . . . 5 7 . 6 2 2 2 . . 2 2 . . 3 7 1 3 Treads 2 | . . . . . . . . . . . . . . . . . . . 1 . 1 Leg 42 | 2 . . . . 5 7 . 6 2 2 2 . . 2 2 . . 3 6 1 2 Wheel . | . . . . . . . . . . . . . . . . . . . . . . Hover . | . . . . . . . . . . . . . . . . . . . . . . Flight . | . . . . . . . . . . . . . . . . . . . . . . Utility 65 | 1 2 . 1 . 6 6 . 8 . 8 3 2 . 3 3 4 . 7 2 2 7 Device 25 | . . . . . 1 4 . 3 . 4 2 . . 1 2 . . 3 1 1 3 Storage 8 | 1 1 . 1 . 3 . . . . . . . . . . 1 . 1 . . . Processor 10 | . 1 . . . . . . 2 . 2 . 1 . . . . . 1 1 1 1 Hackware 5 | . . . . . 1 . . . . 1 . . . . . 1 . 1 . . 1 Protection 17 | . . . . . 1 2 . 3 . 1 1 1 . 2 1 2 . 1 . . 2 Artifact . | . . . . . . . . . . . . . . . . . . . . . . Weapon 79 | 2 1 . . . 13 19 1 . . 7 . 3 . 4 5 4 . 3 6 1 10 Energy Gun 25 | 1 . . . . 6 8 . . . 1 . . . 1 1 3 . . 1 1 2 Energy Cannon 10 | . . . . . . . . . . 2 . . . 1 2 1 . 1 1 . 2 Ballistic Gun 23 | 1 . . . . 3 8 . . . . . 1 . 1 1 . . 1 3 . 4 Ballistic Cannon 9 | . 1 . . . 4 1 1 . . 2 . . . . . . . . . . . Launcher 8 | . . . . . . 2 . . . 1 . 2 . 1 1 . . 1 . . . Special Weapon 1 | . . . . . . . . . . . . . . . . . . . . . 1 Impact Weapon . | . . . . . . . . . . . . . . . . . . . . . . Slashing Weapon 3 | . . . . . . . . . . 1 . . . . . . . . 1 . 1 Piercing Weapon . | . . . . . . . . . . . . . . . . . . . . . . Special Melee Weapon . | . . . . . . . . . . . . . . . . . . . . . . Unidentified Prototypes 16 | . . . . . 1 3 . . . 1 . . . 1 . 1 . 6 . 1 2 Parts Lost 68 | . . . . . 2 12 . . 2 1 2 1 . 4 3 . . 6 14 . 21 Power 5 | . . . . . . 2 . . . . . . . . 1 . . . 1 . 1 Propulsion 26 | . . . . . 1 5 . . 1 1 2 . . 3 1 . . . 7 . 5 Utility 11 | . . . . . . . . . 1 . . 1 . . . . . 2 2 . 5 Weapon 26 | . . . . . 1 5 . . . . . . . 1 1 . . 4 4 . 10 Highest Loss Streak 16 | . . . . . 2 3 . . 1 1 1 1 . 3 2 . . 3 11 . 16 Average Slot Usage (%) 90 | . 95 100 100 100 96 94 81 85 74 86 95 99 100 98 88 85 94 95 92 89 70 Engine 5 | . 14 14 14 14 9 8 9 4 . 1 6 6 6 6 3 . . . . . . Reactor 1 | . . . . . . . . 1 6 4 . . . . 1 4 5 5 1 . . Leg 28 | . 28 28 28 28 34 34 36 32 31 32 28 33 33 31 21 21 21 24 19 14 12 Device 7 | . . . . . . 8 9 7 . 5 10 11 6 11 10 10 10 10 11 6 7 Storage 8 | . 14 14 14 14 9 9 9 6 6 6 6 6 6 6 5 8 10 10 10 9 6 Processor 11 | . 9 14 14 14 9 1 . 10 13 21 13 12 13 13 11 10 10 13 18 20 15 Hackware 3 | . . . . . 1 . . . . 4 6 6 6 6 5 5 10 10 10 9 6 Protection 4 | . . . . . 7 7 9 13 15 . 2 1 6 1 6 9 10 4 . . 1 Energy Gun 5 | . 14 14 14 14 10 8 . . . . 6 6 6 6 4 6 10 7 . 4 2 Energy Cannon 2 | . . . . . . . . . . 3 13 7 . 1 8 7 5 4 1 . 2 Ballistic Gun 4 | . 1 . . . 12 15 . . . . . 3 6 9 2 . . 1 9 14 5 Ballistic Cannon 3 | . 12 14 14 14 1 . 9 6 . 3 . . . . . . . . . . . Naked Turns 100 | . . . . . . . . . . . . . . . . . . . . . 100 Heaviest Build 119 | 12 18 18 26 26 102 60 104 119 119 105 67 65 62 70 81 80 78 84 72 64 81 Greatest Support 130 | 20 20 20 20 20 53 53 45 60 70 75 90 90 90 90 78 78 78 113 113 75 130 Greatest Overweight (x) 2 | . . . 1 1 2 2 2 2 1 1 1 . . 1 1 1 . . 1 . 1 Average Overweight (x) . | . . . . 1 . . 2 1 . . . . . . . . . . . . . Largest Inventory Capacity 12 | 6 8 8 10 10 12 12 12 12 12 12 12 12 12 12 12 12 12 12 12 12 12 Average Capacity 11 | 5 6 8 8 10 11 12 12 12 12 12 12 12 12 12 12 12 12 12 12 12 10 Most Carried 12 | 6 7 7 10 10 12 12 12 12 12 12 12 12 11 12 12 12 12 12 10 12 12 Average Carried 10 | 3 6 7 8 10 10 11 11 11 11 7 11 11 11 11 11 11 12 11 7 8 9 Final Capacity 12 | 6 8 8 10 10 12 12 12 12 12 12 12 12 12 12 12 12 12 12 12 12 4 Final Carried 12 | 6 7 7 10 10 12 12 12 12 10 11 12 11 11 12 12 12 12 10 8 12 1 Class Distribution -------------------- 36% | Scavenger-Skirmisher 18% | Scavenger-Mutant 16% | Mutant 10% | Skirmisher 5% | Scavenger-Gunner 5% | Hacker-Mutant 4% | Scavenger-Tank Dominant Class ---------------- Mutant | -10/Materials Mutant | -10/Mines Mutant | -10/Exiles Mutant | -9/Mines Skirmisher | -8/Materials Scavenger-Skirmisher | -8/Storage Scavenger-Skirmisher | -8/Recycling Scavenger-Skirmisher | -6/Factory Scavenger-Mutant | -6/Waste Scavenger-Skirmisher | -6/Factory Scavenger-Mutant | -6/Lower Caves Scavenger-Skirmisher | -6/Lower Caves Scavenger-Mutant | -6/Data Miner Scavenger-Mutant | -5/Proximity Caves Scavenger-Mutant | -5/Factory Scavenger-Skirmisher | -4/Factory Scavenger-Skirmisher | -4/Upper Caves Hacker-Mutant | -4/Warlord Scavenger-Gunner | -3/Proximity Caves Scavenger-Skirmisher | -3/Research Scavenger-Mutant | -2/Research Resources | -11 -10 -10 -10 -9 -8 -8 -8 -6 -6 -6 -6 -6 -6 -5 -5 -4 -4 -4 -3 -3 -2 ----------- Run | Scr Mat Min Exi Min Mat Sto Rec Fac Was Fac Low Low Dat Pro Fac Fac Upp War Pro Res Res Matter Collected 3038 | 147 169 . 26 . 366 692 16 176 . 228 35 121 . 241 108 . . 248 163 129 173 Remotely . | . . . . . . . . . . . . . . . . . . . . . . Salvage Created 5120 | . 172 . . . 393 1810 13 564 . 475 181 311 . 289 213 . . . 291 224 184 Parts 302 | . 16 . . . 35 92 19 31 . 27 8 6 . 10 6 . . . 25 13 14 Haulers Intercepted 1 | . . . . . . 1 . . . . . . . . . . . . . . . Recyclers Shooed 3 | . . . . . 2 . . . . . . . . . . . . . . 1 . Parts Field Recycled . | . . . . . . . . . . . . . . . . . . . . . . Retrieved Matter . | . . . . . . . . . . . . . . . . . . . . . . Parts Self-Destructed 165 | . . . . . . . . . . . 2 13 . 21 . . . 114 15 . . Prevented 9 | . . . . . . . . . . . 2 . . . . . . 3 4 . . Kills | -11 -10 -10 -10 -9 -8 -8 -8 -6 -6 -6 -6 -6 -6 -5 -5 -4 -4 -4 -3 -3 -2 ------- Run | Scr Mat Min Exi Min Mat Sto Rec Fac Was Fac Low Low Dat Pro Fac Fac Upp War Pro Res Res Combat Hostiles Destroyed 118 | . 6 . . . 12 27 20 14 . 11 3 7 . 5 4 . . . 4 2 3 Melee 2 | . . . . . . . . . . 1 . . . . . . . . . . 1 Guns 41 | . 2 . . . 9 19 . . . 1 . 2 . 3 . . . . 2 2 1 Cannons 54 | . 2 . . . 3 . 20 14 . 6 2 . . . 4 . . . 2 . 1 AOE 19 | . 2 . . . . 6 . . . 3 1 5 . 2 . . . . . . . Classes Destroyed 15 | . 2 . . . 3 6 1 2 . . 1 . . . . . . . . . . Worker 3 | . . . . . . 2 . . . 1 . . . . . . . . . . . Builder 3 | . . . . . . 2 . . . . . . . . . . . . . 1 . Hauler 1 | . . . . . . 1 . . . . . . . . . . . . . . . Recycler 3 | . . . . . 1 2 . . . . . . . . . . . . . . . Operator 1 | . . . . . 1 . . . . . . . . . . . . . . . . Drone 20 | . . . . . . . 20 . . . . . . . . . . . . . . Watcher 6 | . . . . . . 2 . 1 . 3 . . . . . . . . . . . Swarmer 17 | . 3 . . . 7 . . 3 . 3 . 1 . . . . . . . . . Grunt 36 | . 3 . . . 3 17 . 4 . 4 . 1 . 3 1 . . . . . . Brawler 7 | . . . . . . . . 3 . . . 4 . . . . . . . . . Duelist 6 | . . . . . . 1 . 2 . 1 . . . 1 1 . . . . . . Protector 1 | . . . . . . 1 . . . . . . . . . . . . . . . Sentry 16 | . . . . . 2 8 . 1 . 1 1 1 . . . . . . . 2 . Hunter 3 | . . . . . . . . . . . 1 . . . . . . . 2 . . Programmer 13 | . . . . . . . . 1 . 2 1 . . 2 2 . . . 2 . 3 Best Kill Streak 8 | . 3 . . . 4 8 5 7 . 5 1 5 . 3 1 . . . 2 2 2 Combat Bots Only 7 | . 3 . . . 4 4 5 7 . 4 1 5 . 3 1 . . . 2 1 2 Max Kills in Single Turn 3 | . 2 . . . 2 3 1 1 . 3 1 2 . 1 1 . . . 2 1 1 Gunslinging 1 | . . . . . 1 . . . . . . . . . . . . . 1 . . Exploded 3 | . 2 . . . . 2 . . . 3 1 2 . 1 . . . . . . . Melee 1 | . . . . . . . . . . 1 . . . . . . . . . . 1 Uniques/NPCs Destroyed . | . . . . . . . . . . . . . . . . . . . . . . Combat | -11 -10 -10 -10 -9 -8 -8 -8 -6 -6 -6 -6 -6 -6 -5 -5 -4 -4 -4 -3 -3 -2 -------- Run | Scr Mat Min Exi Min Mat Sto Rec Fac Was Fac Low Low Dat Pro Fac Fac Upp War Pro Res Res Damage Taken 11360 | . 88 . . . 578 1758 . 373 110 318 192 301 . 362 440 . . 1076 1525 251 3988 Core 2176 | . 19 . . . 45 276 . . . 20 22 72 . . 20 . . 109 107 33 1453 Absorbed by Shields 346 | . . . . . . . . . . . . . . . . . . 152 . . 194 Reduced by Siege Mode 4 | . . . . . . . . . . . . . . . . . . . . 4 . Core Remaining (%) 85 | 100 . . . 92 . . 41 . . . . . . 86 98 . . . 81 97 . Volleys Fired 222 | . 13 . . . 24 86 . . . 7 5 14 . 15 12 . . 6 18 8 14 Largest 4 | . 2 . . . 3 3 . . . 3 3 3 . 3 3 . . 3 3 4 3 Hottest 198 | . 75 . . . 115 115 . . . 150 150 150 . 158 190 . . 175 198 165 185 Shots Fired 618 | . 22 . . . 63 181 67 30 2 36 12 31 . 34 34 . . 13 40 23 30 Gun 362 | . 9 . . . 55 167 . . . 4 2 16 . 31 2 . . 8 25 23 20 Cannon 232 | . 13 . . . 8 . 67 30 2 31 10 10 . 1 31 . . 4 15 . 10 Launcher 24 | . . . . . . 14 . . . 1 . 5 . 2 1 . . 1 . . . Special . | . . . . . . . . . . . . . . . . . . . . . . Kinetic 379 | . 13 . . . 37 125 67 30 2 19 . 7 . 27 . . . 2 16 18 16 Thermal 123 | . . . . . 6 19 . . . 12 10 10 . 1 33 . . 7 15 . 10 Explosive 10 | . . . . . . . . . . 1 . 5 . 2 1 . . 1 . . . Electromagnetic 106 | . 9 . . . 20 37 . . . 4 2 9 . 4 . . . 3 9 5 4 Robot Hit Streak 20 | . 6 . . . 8 13 4 9 3 13 5 8 . 6 8 . . 1 8 20 8 Robot Miss Streak 7 | . 1 . . . 4 7 6 1 . 1 2 2 . 2 1 . . 3 2 1 2 Penetration Max 1 | . . . . . . . . . . . . . . 1 . . . 1 . 1 . Secondary Targets 7 | . . . . . 2 4 . . . . . . . . . . . . 1 . . Max Gunslinging Chain 1 | . . . . . 1 1 . . . . . . . . . . . . 1 . . Autonomous 127 | . . . . . 8 . 67 30 2 20 . . . . . . . . . . . Shots Hit Robots 408 | . 16 . . . 45 116 28 27 2 28 7 21 . 18 27 . . 4 27 18 24 Core Hits 224 | . 9 . . . 20 70 18 15 . 17 5 21 . 12 7 . . 2 10 9 9 Critical Hits 7 | . . . . . . 1 1 1 . 2 . . . . . . . . 1 1 . Critical Kills 3 | . . . . . . . . 1 . 1 . . . . . . . . 1 . . Critical Parts Destroyed 4 | . . . . . . 1 1 . . 1 . . . . . . . . . 1 . Melee Attacks 13 | . . . . . . . . . . 5 . . . . . . . . . . 8 Impact . | . . . . . . . . . . . . . . . . . . . . . . Slashing 13 | . . . . . . . . . . 5 . . . . . . . . . . 8 Piercing . | . . . . . . . . . . . . . . . . . . . . . . Sneak Attacks . | . . . . . . . . . . . . . . . . . . . . . . Combat Hostiles . | . . . . . . . . . . . . . . . . . . . . . . Follow-up Attacks . | . . . . . . . . . . . . . . . . . . . . . . Damage Inflicted 17222 | . 262 . . . 1030 3014 3072 2307 78 2029 247 1222 . 738 962 . . 121 801 569 770 Guns 4539 | . 91 . . . 529 1843 . . . 29 20 189 . 523 21 . . 59 331 569 335 Cannons 9738 | . 118 . . . 501 . 3072 2307 78 1609 150 197 . . 941 . . 62 470 . 233 Explosions 2606 | . 53 . . . . 1171 . . . 254 77 836 . 215 . . . . . . . Melee 322 | . . . . . . . . . . 137 . . . . . . . . . . 185 Ramming 17 | . . . . . . . . . . . . . . . . . . . . . 17 Kinetic 10503 | . 118 . . . 741 1344 3072 2307 78 1436 . 64 . 436 . . . 49 178 453 227 Thermal 2830 | . 53 . . . 70 317 . . . 173 227 263 . . 962 . . 62 470 . 233 Explosive 1239 | . . . . . . . . . . 254 . 770 . 215 . . . . . . . Electromagnetic 2311 | . 91 . . . 219 1353 . . . 29 20 125 . 87 . . . 10 153 116 108 Impact . | . . . . . . . . . . . . . . . . . . . . . . Slashing 322 | . . . . . . . . . . 137 . . . . . . . . . . 185 Piercing . | . . . . . . . . . . . . . . . . . . . . . . Highest Corruption 20 | . . . . . 1 2 2 . . 1 1 1 1 1 . . . 3 4 . 20 Average Corruption 2 | . . . . . 1 1 2 . . 1 1 1 1 1 . . . 1 2 . 9 Corruption Purged . | . . . . . . . . . . . . . . . . . . . . . . Effects 71 | . . . . . 4 11 11 . . 1 3 3 . 1 . . . 2 10 . 25 Message Errors 21 | . . . . . 2 5 5 . . . 1 . . . . . . 1 1 . 6 Matter Fused 6 | . . . . . . . . . . . . . . . . . . . 3 . 3 Heat Flow Errors 4 | . . . . . . . 2 . . . . . . . . . . . 1 . 1 Energy Discharges 11 | . . . . . . 3 3 . . 1 . 1 . . . . . 1 2 . . Parts Rejected 1 | . . . . . . . . . . . . . . . . . . . . . 1 Data Loss (minor) 9 | . . . . . 1 . 1 . . . 2 2 . . . . . . 1 . 2 Data Loss (major) 2 | . . . . . . . . . . . . . . . . . . . . . 2 Alerts 1 | . . . . . . . . . . . . . . . . . . . . . 1 Misdirections 4 | . . . . . . . . . . . . . . . . . . . . . 4 Targeting Errors 9 | . . . . . 1 2 . . . . . . . 1 . . . . . . 5 Weapon Failures 3 | . . . . . . 1 . . . . . . . . . . . . 2 . . Overload Shots . | . . . . . . . . . . . . . . . . . . . . . . Overflow Damage 1582 | . . . . . 59 29 1009 182 . 201 15 2 . . 85 . . . . . . Projectiles 1457 | . . . . . 59 . 1009 182 . 122 . . . . 85 . . . . . . Explosions 109 | . . . . . . 29 . . . 63 15 2 . . . . . . . . . Melee 16 | . . . . . . . . . . 16 . . . . . . . . . . . Knockbacks 26 | . 2 . . . 2 . 12 7 . 3 . . . . . . . . . . . Impact . | . . . . . . . . . . . . . . . . . . . . . . Kinetic 22 | . 2 . . . 2 . 11 5 . 2 . . . . . . . . . . . Secondary 4 | . . . . . . . 1 2 . 1 . . . . . . . . . . . Self-Inflicted Damage 260 | . . . . . . 74 . . . 71 58 . . 49 . . . . . . 8 Shots 10 | . . . . . . 7 . . . 1 1 . . 1 . . . . . . . Rammed 3 | . . . . . . . . . . . . . . . . . . . . . 3 Targets Rammed 3 | . . . . . . . . . . . . . . . . . . . . . 3 Kicked . | . . . . . . . . . . . . . . . . . . . . . . Crushed . | . . . . . . . . . . . . . . . . . . . . . . Highest Temperature 345 | . 87 . . . 238 345 256 5 . 12 24 22 . 18 137 . . 30 219 7 225 Average Temperature 70 | . 31 . . . 71 81 112 5 . 5 14 15 . 6 50 . . 17 74 4 116 Received Heat Transfer 1442 | . 33 . . . 99 819 . 114 . 81 6 45 . 96 9 . . 62 51 27 . Effects 2 | . . . . . 1 1 . . . . . . . . . . . . . . . Energy Bleed 1 | . . . . . 1 . . . . . . . . . . . . . . . . Damage (minor) 1 | . . . . . . 1 . . . . . . . . . . . . . . . Siege Activations 1 | . . . . . . . . . . . . . . . . . . . . 1 . Total Turns 7 | . . . . . . . . . . . . . . . . . . . . 7 . Longest Duration 7 | . . . . . . . . . . . . . . . . . . . . 7 . Robots Corrupted 2 | . . . . . . 2 . . . . . . . . . . . . . . . Combat Hostiles 2 | . . . . . . 2 . . . . . . . . . . . . . . . Parts Fried 8 | . . . . . . 8 . . . . . . . . . . . . . . . Impact Corruptions 2 | . . . . . . . 2 . . . . . . . . . . . . . . Robots Melted . | . . . . . . . . . . . . . . . . . . . . . . Combat Hostiles . | . . . . . . . . . . . . . . . . . . . . . . Parts Melted 3 | . . . . . . . . . . . . . . . 3 . . . . . . Heat Transferred 3511 | . 100 . . . 185 618 . . . 211 261 335 . . 1095 . . 100 481 . 125 Parts Sabotaged . | . . . . . . . . . . . . . . . . . . . . . . Parts Stolen . | . . . . . . . . . . . . . . . . . . . . . . Parts Stripped . | . . . . . . . . . . . . . . . . . . . . . . Power Chain Reactions 5 | . 1 . . . . 2 . . . . 1 1 . . . . . . . . . Missiles Intercepted . | . . . . . . . . . . . . . . . . . . . . . . Alert | -11 -10 -10 -10 -9 -8 -8 -8 -6 -6 -6 -6 -6 -6 -5 -5 -4 -4 -4 -3 -3 -2 ------- Run | Scr Mat Min Exi Min Mat Sto Rec Fac Was Fac Low Low Dat Pro Fac Fac Upp War Pro Res Res Peak Influence 1065 | . 233 15 . . 157 410 241 1065 314 323 . . . . 106 76 . . . 142 147 Initial 902 | . . 15 . . . 66 . 902 313 205 . . . . 94 46 . . . 27 79 Average 209 | . 92 15 . . 75 190 127 984 308 209 . . . . 79 59 . . . 60 50 Maximum Alert Level 3 | . 1 . . . . 2 1 3 1 1 . . . . . . . . . . . Low Security (%) 70 | 100 80 100 . 100 100 52 87 . . 38 . . . . 100 100 . . . 100 100 Level 1 18 | . 19 . . . . 46 12 . 100 61 . . . . . . . . . . . Level 2 . | . . . . . . . . . . . . . . . . . . . . . . Level 3 10 | . . . . . . . . 100 . . . . . . . . . . . . . Level 4 . | . . . . . . . . . . . . . . . . . . . . . . Level 5 . | . . . . . . . . . . . . . . . . . . . . . . High Security . | . . . . . . . . . . . . . . . . . . . . . . Max Security . | . . . . . . . . . . . . . . . . . . . . . . Squads Dispatched 20 | . 1 . . . . 4 . 4 . 4 . 1 . . 3 1 . . . 1 1 Investigation 3 | . . . . . . . . . . . . . . . 2 1 . . . . . Extermination 4 | . . . . . . . . 1 . 2 . . . . 1 . . . . . . Reinforcement 7 | . 1 . . . . 2 . . . 2 . . . . . . . . . 1 1 Assault 6 | . . . . . . 2 . 3 . . . 1 . . . . . . . . . Garrison . | . . . . . . . . . . . . . . . . . . . . . . Intercept . | . . . . . . . . . . . . . . . . . . . . . . Construction Impeded 3 | . . . . . . 1 . . . 1 . . . . . . . . . 1 . Haulers Reinforced 1 | . . . . . . . . . . 1 . . . . . . . . . . . Stealth | -11 -10 -10 -10 -9 -8 -8 -8 -6 -6 -6 -6 -6 -6 -5 -5 -4 -4 -4 -3 -3 -2 --------- Run | Scr Mat Min Exi Min Mat Sto Rec Fac Was Fac Low Low Dat Pro Fac Fac Upp War Pro Res Res Distress Signals 15 | . 1 . . . 4 2 . . . 1 . . . . . . . 1 . . 6 Communications Jammed 14 | . . . . . . . 14 . . . . . . . . . . . . . . Distress Signals . | . . . . . . . . . . . . . . . . . . . . . . Times Spotted 239 | . 12 . . 4 20 45 25 19 6 15 4 10 . 9 6 . . 37 8 6 13 Peak Tracking Total 12 | . 4 . . 2 6 11 2 8 6 5 1 8 . 5 3 . . 12 4 2 6 Tactical Retreats 23 | . 1 . . . 3 8 . 1 1 . . 2 . 1 1 . . 3 . . 2 Traps | -11 -10 -10 -10 -9 -8 -8 -8 -6 -6 -6 -6 -6 -6 -5 -5 -4 -4 -4 -3 -3 -2 ------- Run | Scr Mat Min Exi Min Mat Sto Rec Fac Was Fac Low Low Dat Pro Fac Fac Upp War Pro Res Res Traps Triggered 10 | . . . . . 1 2 . 3 . . . . . . 2 2 . . . . . Indirectly 1 | . . . . . . 1 . . . . . . . . . . . . . . . Trap Hack Attempts . | . . . . . . . . . . . . . . . . . . . . . . Triggered . | . . . . . . . . . . . . . . . . . . . . . . Disarmed . | . . . . . . . . . . . . . . . . . . . . . . Reprogrammed . | . . . . . . . . . . . . . . . . . . . . . . Reused . | . . . . . . . . . . . . . . . . . . . . . . Traps Extracted . | . . . . . . . . . . . . . . . . . . . . . . Installed . | . . . . . . . . . . . . . . . . . . . . . . Triggered 17 | . . . . . . 1 . . . . 2 . . . . . . 12 2 . . Machines | -11 -10 -10 -10 -9 -8 -8 -8 -6 -6 -6 -6 -6 -6 -5 -5 -4 -4 -4 -3 -3 -2 ---------- Run | Scr Mat Min Exi Min Mat Sto Rec Fac Was Fac Low Low Dat Pro Fac Fac Upp War Pro Res Res Machines Disabled 9 | . 1 . . . . 2 . . . 4 . 2 . . . . . . . . . Max in Single Turn 3 | . 1 . . . . 1 . . . 3 . 1 . . . . . . . . . Machines Sabotaged . | . . . . . . . . . . . . . . . . . . . . . . Garrisons Compromised . | . . . . . . . . . . . . . . . . . . . . . . Overloaded Fab Kills . | . . . . . . . . . . . . . . . . . . . . . . Fab Network Shutdowns . | . . . . . . . . . . . . . . . . . . . . . . Hacking | -11 -10 -10 -10 -9 -8 -8 -8 -6 -6 -6 -6 -6 -6 -5 -5 -4 -4 -4 -3 -3 -2 --------- Run | Scr Mat Min Exi Min Mat Sto Rec Fac Was Fac Low Low Dat Pro Fac Fac Upp War Pro Res Res Machines Accessed 60 | . 6 . 5 1 5 7 9 2 . 4 1 . 4 . 5 2 . 8 . 1 . Terminals 32 | . 6 . . 1 5 7 5 1 . 4 1 . . . . 1 . . . 1 . Fabricators . | . . . . . . . . . . . . . . . . . . . . . . Repair Stations 2 | . . . . . . . . 1 . . . . . . 1 . . . . . . Recycling Units 7 | . . . . . . . 4 . . . . . . . 2 1 . . . . . Scanalyzers 1 | . . . . . . . . . . . . . . . 1 . . . . . . Garrison Access 1 | . . . . . . . . . . . . . . . 1 . . . . . . Total Hacks 207 | . 16 . 50 1 15 26 25 2 . 14 2 . 31 . 8 2 . 11 . 4 . Successful 155 | . 12 . 50 1 8 12 14 . . 8 2 . 31 . 2 2 . 11 . 2 . Failed 52 | . 4 . . . 7 14 11 2 . 6 . . . . 6 . . . . 2 . Catastrophic 8 | . . . . . 1 3 2 1 . 1 . . . . . . . . . . . Database Lockouts . | . . . . . . . . . . . . . . . . . . . . . . Manual 72 | . 9 . 1 . 11 15 19 . . 8 1 . . . 3 2 . 1 . 2 . Terminals 100 | . 16 . . 1 15 26 20 1 . 14 2 . . . . 1 . . . 4 . Fabricators . | . . . . . . . . . . . . . . . . . . . . . . Repair Stations 3 | . . . . . . . . 1 . . . . . . 2 . . . . . . Recycling Units 9 | . . . . . . . 5 . . . . . . . 3 1 . . . . . Scanalyzers 1 | . . . . . . . . . . . . . . . 1 . . . . . . Garrison Access 2 | . . . . . . . . . . . . . . . 2 . . . . . . Terminal Hacks 127 | . 7 . 50 1 4 9 6 . . 5 1 . 31 . . 1 . 11 . 1 . Record 71 | . . . 49 . . . . . . . 1 . 11 . . . . 10 . . . Part Schematic 12 | . . . . . 1 . 1 . . . . . 10 . . . . . . . . Robot Schematic 7 | . . . . . . . . . . . . . 7 . . . . . . . . Prototype ID Bank 4 | . 1 . . . . . . . . . . . 3 . . . . . . . . Open Door 3 | . . . . . . 2 . . . . . . . . . . . 1 . . . Level Access Points 3 | . . . . . . . 1 . . 1 . . . . . . . . . 1 . Branch Access Points 3 | . . . . . 1 1 . . . 1 . . . . . . . . . . . Emergency Access Points 2 | . . . . . . 1 1 . . . . . . . . . . . . . . Alert Level 4 | . . . . . 1 1 . . . 1 . . . . . 1 . . . . . Unreport Threat 7 | . . . . . . 3 3 . . 1 . . . . . . . . . . . Locate Traps 1 | . . . . . . 1 . . . . . . . . . . . . . . . Maintenance Status 1 | . 1 . . . . . . . . . . . . . . . . . . . . Recall Investigation 1 | . 1 . . . . . . . . . . . . . . . . . . . . Hauler Manifests 1 | . 1 . . . . . . . . . . . . . . . . . . . . Registered Components 1 | . 1 . . . . . . . . . . . . . . . . . . . . Registered Prototypes 1 | . . . . . . . . . . 1 . . . . . . . . . . . Zone Layout 4 | . 2 . . 1 1 . . . . . . . . . . . . . . . . EX-Prototype ID Bank 1 | . . . 1 . . . . . . . . . . . . . . . . . . Fabricator Hacks . | . . . . . . . . . . . . . . . . . . . . . . Repair Station Hacks 1 | . . . . . . . . . . . . . . . 1 . . . . . . Scan Component 1 | . . . . . . . . . . . . . . . 1 . . . . . . Recycling Unit Hacks . | . . . . . . . . . . . . . . . . . . . . . . Scanalyzer . | . . . . . . . . . . . . . . . . . . . . . . Garrison Access Hacks . | . . . . . . . . . . . . . . . . . . . . . . Unauthorized Hacks 27 | . 5 . . . 4 3 8 . . 3 1 . . . 1 1 . . . 1 . Terminals 21 | . 5 . . . 4 3 4 . . 3 1 . . . . . . . . 1 . Track 1 | . . . . . . . . . . . 1 . . . . . . . . . . Assimilate 1 | . 1 . . . . . . . . . . . . . . . . . . . . Botnet 17 | . 3 . . . 3 3 4 . . 3 . . . . . . . . . 1 . Operators 2 | . 1 . . . 1 . . . . . . . . . . . . . . . . Fabricators . | . . . . . . . . . . . . . . . . . . . . . . Repair Stations . | . . . . . . . . . . . . . . . . . . . . . . Recycling Units 6 | . . . . . . . 4 . . . . . . . 1 1 . . . . . Tunnel 6 | . . . . . . . 4 . . . . . . . 1 1 . . . . . Scanalyzers . | . . . . . . . . . . . . . . . . . . . . . . Garrison Access . | . . . . . . . . . . . . . . . . . . . . . . Data Cores Recovered 1 | . . . . . 1 . . . . . . . . . . . . . . . . Used 1 | . . . . . 1 . . . . . . . . . . . . . . . . Hacking Detections 32 | . 4 . . . 5 7 5 2 . 4 . . . . 4 . . . . 1 . Full Trace Events 3 | . 1 . . . . 1 . . . . . . . . 1 . . . . . . Feedback Events . | . . . . . . . . . . . . . . . . . . . . . . Feedback Blocked . | . . . . . . . . . . . . . . . . . . . . . . Robot Schematics Acquired 7 | . . . . . . . . . . . . . 7 . . . . . . . . Robots Built . | . . . . . . . . . . . . . . . . . . . . . . Matter . | . . . . . . . . . . . . . . . . . . . . . . Time . | . . . . . . . . . . . . . . . . . . . . . . Total Robot Build Rating . | . . . . . . . . . . . . . . . . . . . . . . Part Schematics Acquired 12 | . . . . . 1 . 1 . . . . . 10 . . . . . . . . Parts Built . | . . . . . . . . . . . . . . . . . . . . . . Matter . | . . . . . . . . . . . . . . . . . . . . . . Time . | . . . . . . . . . . . . . . . . . . . . . . Total Part Build Rating . | . . . . . . . . . . . . . . . . . . . . . . Parts Repaired . | . . . . . . . . . . . . . . . . . . . . . . Time . | . . . . . . . . . . . . . . . . . . . . . . Parts Recycled . | . . . . . . . . . . . . . . . . . . . . . . Recycled Matter . | . . . . . . . . . . . . . . . . . . . . . . Retrieved Matter . | . . . . . . . . . . . . . . . . . . . . . . Retrieved Components . | . . . . . . . . . . . . . . . . . . . . . . Parts Scanalyzed . | . . . . . . . . . . . . . . . . . . . . . . Part Schematics Acquired . | . . . . . . . . . . . . . . . . . . . . . . Parts Damaged . | . . . . . . . . . . . . . . . . . . . . . . Bothacking | -11 -10 -10 -10 -9 -8 -8 -8 -6 -6 -6 -6 -6 -6 -5 -5 -4 -4 -4 -3 -3 -2 ------------ Run | Scr Mat Min Exi Min Mat Sto Rec Fac Was Fac Low Low Dat Pro Fac Fac Upp War Pro Res Res Used RIF Installer . | . . . . . . . . . . . . . . . . . . . . . . Robots Hacked . | . . . . . . . . . . . . . . . . . . . . . . Non-combat . | . . . . . . . . . . . . . . . . . . . . . . Combat . | . . . . . . . . . . . . . . . . . . . . . . Robot Hacks Applied . | . . . . . . . . . . . . . . . . . . . . . . Relay Couplers Released . | . . . . . . . . . . . . . . . . . . . . . . Robots Rewired 6 | . . . . . . . . . . . . 2 . . . . . 4 . . . Allies Hacked 2 | . . . . . . . . . . . . . . 2 . . . . . . . Hacks Repelled . | . . . . . . . . . . . . . . . . . . . . . . Allies | -11 -10 -10 -10 -9 -8 -8 -8 -6 -6 -6 -6 -6 -6 -5 -5 -4 -4 -4 -3 -3 -2 -------- Run | Scr Mat Min Exi Min Mat Sto Rec Fac Was Fac Low Low Dat Pro Fac Fac Upp War Pro Res Res Total Allies 13 | . 1 3 . . . 2 . . . . . 2 . 1 . . . 4 . . . Largest Group 4 | . 1 3 3 3 1 2 . . . . . 2 2 3 . . . 4 . . . Highest-Rated Group 218 | . 10 40 40 40 8 62 . . . . . 62 62 156 . . . 218 . . . Highest-Rated Ally 94 | . 10 16 16 16 8 31 . . . . . 32 32 94 . . . 60 . . . Total Orders . | . . . . . . . . . . . . . . . . . . . . . . Ally Attacks 38 | . . . . 5 2 12 . . . . . 3 . 13 . . . 3 . . . Total Damage 1038 | . . . . 43 22 206 . . . . . 85 . 568 . . . 114 . . . Kills 8 | . . . . . . 2 . . . . . 2 . 3 . . . 1 . . . Allies Corrupted . | . . . . . . . . . . . . . . . . . . . . . . Allies Melted . | . . . . . . . . . . . . . . . . . . . . . . Intel | -11 -10 -10 -10 -9 -8 -8 -8 -6 -6 -6 -6 -6 -6 -5 -5 -4 -4 -4 -3 -3 -2 ------- Run | Scr Mat Min Exi Min Mat Sto Rec Fac Was Fac Low Low Dat Pro Fac Fac Upp War Pro Res Res Robot Analysis Total . | . . . . . . . . . . . . . . . . . . . . . . Derelict Logs Recovered 3 | . . . . . . . . . . . 1 1 . 1 . . . . . . . Drone Launches . | . . . . . . . . . . . . . . . . . . . . . . Drone Recoveries . | . . . . . . . . . . . . . . . . . . . . . . Exploration | -11 -10 -10 -10 -9 -8 -8 -8 -6 -6 -6 -6 -6 -6 -5 -5 -4 -4 -4 -3 -3 -2 ------------- Run | Scr Mat Min Exi Min Mat Sto Rec Fac Was Fac Low Low Dat Pro Fac Fac Upp War Pro Res Res Turns Passed 11973 | 68 592 50 743 56 1063 1231 1114 838 152 895 598 509 115 355 749 209 5 930 603 319 779 Spaces Moved 7612 | 47 421 42 550 37 672 404 583 435 116 511 414 362 89 236 502 158 5 747 471 211 599 Core 187 | 4 . . . . . . . . . . . . . . . . . . . . 183 Treads 6 | . . . . . . . . . . . . . . . . . . . 6 . . Legs 7419 | 43 421 42 550 37 672 404 583 435 116 511 414 362 89 236 502 158 5 747 465 211 416 Wheels . | . . . . . . . . . . . . . . . . . . . . . . Hover . | . . . . . . . . . . . . . . . . . . . . . . Flight . | . . . . . . . . . . . . . . . . . . . . . . Fastest Speed 50 | 50 120 120 120 150 120 120 180 150 120 120 120 120 120 120 120 120 120 108 108 110 50 Average Speed 128 | 114 120 120 133 150 124 139 180 171 123 139 126 120 120 120 123 122 120 111 111 110 97 Slowest Speed 180 | 120 120 120 150 150 180 180 180 180 150 150 150 120 120 150 150 150 120 120 145 110 143 Overloaded Moves . | . . . . . . . . . . . . . . . . . . . . . . Propulsion Burnouts . | . . . . . . . . . . . . . . . . . . . . . . Robots Hopped . | . . . . . . . . . . . . . . . . . . . . . . Cave-ins Triggered . | . . . . . . . . . . . . . . . . . . . . . . Exploration Rate (%) 39 | 4 65 11 93 18 48 51 93 12 77 15 60 55 75 44 10 3 1 53 63 8 12 Regions Visited 21 Branch Regions 12 Pre-discovered Areas 9 | . . . 1 . . . 4 . . . . 1 1 . 1 1 . . . . . Known Exits Taken 13 | . . . . . 1 1 1 . . 1 . 1 1 1 1 1 1 1 1 1 . Unknown Exits Taken 6 | 1 1 1 1 1 . . . . . . 1 . . . . . . . . . . Scrap Searched 3 | . . . . . . . . . . . . 2 . . . . . . 1 . . Spaces Dug 28 | . . . . . . . . . . 8 . . . . 7 . . 13 . . . Terrain Destroyed 220 | . 1 . . . . 8 28 1 1 48 14 46 . 35 10 . . 13 8 1 6 Melee . | . . . . . . . . . . . . . . . . . . . . . . Projectile 71 | . . . . . . . 28 1 1 3 4 4 . 10 3 . . 2 8 1 6 AOE 149 | . 1 . . . . 8 . . . 45 10 42 . 25 7 . . 11 . . . Terrain Rammed . | . . . . . . . . . . . . . . . . . . . . . . Walls Destroyed . | . . . . . . . . . . . . . . . . . . . . . . Machines Disabled . | . . . . . . . . . . . . . . . . . . . . . . Actions | -11 -10 -10 -10 -9 -8 -8 -8 -6 -6 -6 -6 -6 -6 -5 -5 -4 -4 -4 -3 -3 -2 --------- Run | Scr Mat Min Exi Min Mat Sto Rec Fac Was Fac Low Low Dat Pro Fac Fac Upp War Pro Res Res Total 9388 | 58 489 41 564 38 862 932 651 532 126 669 477 412 97 272 602 171 4 837 511 283 760 Wait 1059 | . 36 . . 2 101 376 51 47 5 115 49 11 9 10 58 . . 43 . 51 95 Move 7592 | 46 420 41 549 36 671 403 582 435 115 510 413 361 88 235 501 157 4 746 470 210 599 Hop . | . . . . . . . . . . . . . . . . . . . . . . Pick Up 120 | 6 8 . 7 . 17 15 6 11 . 6 3 3 . 3 10 2 . 3 6 8 6 Fast Attach 72 | 6 2 . . . 8 11 . 2 . 5 2 . . 1 3 9 . 8 6 . 9 Attach 80 | . . . . . 11 13 1 6 2 11 . 2 . 2 4 . . 4 9 4 11 Detach 29 | . . . . . 5 2 . 2 1 8 . . . . . . . 4 1 1 5 Swap 46 | . 1 . 1 . 6 10 . 7 . 2 3 3 . 6 4 . . 2 1 . . Drop 103 | . 9 . 7 . 19 16 6 12 3 . 2 3 . . 5 3 . 8 . 1 9 Fire 222 | . 13 . . . 24 86 . . . 7 5 14 . 15 12 . . 6 18 8 14 Melee 13 | . . . . . . . . . . 5 . . . . . . . . . . 8 Ram 3 | . . . . . . . . . . . . . . . . . . . . . 3 Kick . | . . . . . . . . . . . . . . . . . . . . . . Crush . | . . . . . . . . . . . . . . . . . . . . . . Escape Stasis 15 | . . . . . . . . 10 . . . . . . 5 . . . . . . Rewire 34 | . . . . . . . 5 . . . . 15 . . . . . 13 . . 1 Trap . | . . . . . . . . . . . . . . . . . . . . . . Miscellaneous . | . . . . . . . . . . . . . . . . . . . . . . Route ------- -11/Scrapyard -10/Materials (discovered 3 exits: [Mat] / [*Min x2]) -10/Mines -10/Exiles (discovered 2 exits: *Min x2) -9/Mines -8/Materials (discovered 2 exits: [*Fac] / *Sto) -8/Storage -8/Recycling -6/Factory -6/Waste -6/Factory (discovered 6 exits: Fac x4 / *Low x2) -6/Lower Caves -6/Lower Caves -6/Data Miner -5/Proximity Caves -5/Factory -4/Factory -4/Upper Caves -4/Warlord -3/Proximity Caves -3/Research (discovered 3 exits: *Res x3) -2/Research History --------- Turn | Location | Event 6 | -11/Scrapyard | Discovered new exit (range 16) 69 | -11/Scrapyard | Entered Materials 107 | -10/Materials | Discovered new exit (range 13) 315 | -10/Materials | Build established: Mutant 355 | -10/Materials | Discovered new exit (range 21) 503 | -10/Materials | Discovered new exit (range 16) 661 | -10/Materials | Entered Mines 666 | -10/Mines | Assisted by bots powering up and referring to "LRC-V3" 700 | -10/Mines | Deemed a non-threat by the Exiles lab entrance 700 | -10/Mines | Discovered new exit (range 5) 711 | -10/Mines | Entered Exiles 711 | -10/Exiles | Accompanied by 3 allies 728 | -10/Exiles | Discovered new exit (range 15) 741 | -10/Exiles | Met 8R-AWN 765 | -10/Exiles | Met EX-HEX 835 | -10/Exiles | Met EX-DEC 863 | -10/Exiles | Visited The Gauntlet 1027 | -10/Exiles | Learned location of Zion (-7) 1184 | -10/Exiles | Met EX-BIN 1205 | -10/Exiles | Aligned with FarCom system 1206 | -10/Exiles | Given EX-Vault access code 1266 | -10/Exiles | Opened EX-Vault 1280 | -10/Exiles | Found Prototype Device 1301 | -10/Exiles | Found AWS/Autocannon 1343 | -10/Exiles | Warned to stay clear of 0b10 Research branches 1439 | -10/Exiles | Discovered new exit (range 12) 1454 | -10/Exiles | Left Exiles lab with AWS/Autocannon 1454 | -10/Exiles | Entered Mines 1454 | -9/Mines | Accompanied by 3 allies 1457 | -9/Mines | Discovered new exit (range 18) 1510 | -9/Mines | Entered Materials 1510 | -8/Materials | Accompanied by 1 ally 1510 | -8/Materials | Evolved 4 slots: Propulsion x2, Utility x1, Weapon x1 1817 | -8/Materials | Build established: Skirmisher 1908 | -8/Materials | Identified exit to Storage 2142 | -8/Materials | Discovered new exit (range 16) 2573 | -8/Materials | Entered Storage 2689 | -8/Storage | Met a pair of Derelict thieves 3186 | -8/Storage | Found Prototype Protection 3186 | -8/Storage | Identified Lgt. Regenerative Plating 3268 | -8/Storage | Identified exit to Recycling 3482 | -8/Storage | Lost 3 parts (2n1w) 3505 | -8/Storage | Core integrity fell below 50% 3796 | -8/Storage | Used back door to open Recycling access 3804 | -8/Storage | Entered Recycling 3884 | -8/Recycling | Spotter reported a threat 3891 | -8/Recycling | Spotter reported a threat 3927 | -8/Recycling | Spotter reported a threat 4005 | -8/Recycling | Spotter reported a threat 4055 | -8/Recycling | Spotter reported a threat 4070 | -8/Recycling | Build established: Scavenger-Skirmisher 4522 | -8/Recycling | Spotter reported a threat 4541 | -8/Recycling | Spotter reported a threat 4711 | -8/Recycling | Spotter reported a threat 4763 | -8/Recycling | Spotter reported a threat 4763 | -8/Recycling | Spotter reported a threat 4821 | -8/Recycling | Spotter reported a threat 4838 | -8/Recycling | Identified exit to Factory 4900 | -8/Recycling | Spotter reported a threat 4900 | -8/Recycling | Spotter reported a threat 4918 | -8/Recycling | Entered Factory 4918 | -6/Factory | Evolved 4 slots: Propulsion x1, Utility x3 5268 | -6/Factory | First assault squad dispatched 5486 | -6/Factory | Destroyed 7 combat bots 5756 | -6/Factory | Sucked down chute 5756 | -6/Factory | Entered Waste 5768 | -6/Waste | Spotted C-40 Crusher 5776 | -6/Waste | Spotted C-40 Crusher 5777 | -6/Waste | Spotted C-40 Crusher 5829 | -6/Waste | Spotted C-40 Crusher 5842 | -6/Waste | Spotted C-40 Crusher 5852 | -6/Waste | Crushed by Compactor (1 part destroyed, 2 dropped) 5875 | -6/Waste | Spotted C-40 Crusher 5886 | -6/Waste | Crushed by Compactor (1 part destroyed, 2 dropped) 5897 | -6/Waste | Discovered new exit (range 10) 5908 | -6/Waste | Entered Factory 6535 | -6/Factory | Discovered new exit (range 20) 6665 | -6/Factory | Identified exit to Factory 6665 | -6/Factory | Identified exit to Lower Caves 6803 | -6/Factory | Entered Lower Caves 7112 | -6/Lower Caves | Attracted the attention of an 0b10 checkpoint 7185 | -6/Lower Caves | Learned Factory non-interactive machine intel 7387 | -6/Lower Caves | Discovered new exit (range 5) 7401 | -6/Lower Caves | Entered another Lower Caves area 7435 | -6/Lower Caves | Encountered a Warlord checkpoint 7573 | -6/Lower Caves | Attracted the attention of an 0b10 outpost 7819 | -6/Lower Caves | Discovered new exit (range 8) 7850 | -6/Lower Caves | Identified exit to Data Miner 7910 | -6/Lower Caves | Entered Data Miner 7910 | -6/Data Miner | Accompanied by 2 allies 7910 | -6/Data Miner | Discovered new exit (range 6) 7916 | -6/Data Miner | Identified exit to Proximity Caves 7933 | -6/Data Miner | Met Data Miner 7968 | -6/Data Miner | Learned location of Section 7 (-2) 7968 | -6/Data Miner | Acquired the access code to Warlord's prototype stash 7988 | -6/Data Miner | Received God Mode back door access code from Data Miner 8025 | -6/Data Miner | Entered Proximity Caves 8025 | -5/Proximity Caves | Accompanied by 2 allies 8119 | -5/Proximity Caves | Escorted by Enhanced Grunt 8141 | -5/Proximity Caves | Build established: Scavenger-Mutant 8355 | -5/Proximity Caves | Lost 3 parts (2n1w) 8363 | -5/Proximity Caves | Discovered exit to Factory (range 9) 8380 | -5/Proximity Caves | Entered Factory 8380 | -5/Factory | Evolved 2 slots: Utility x2 8381 | -5/Factory | Loaded intel: 249 non-interactive machine locations 8879 | -5/Factory | Incoming investigation squad redirected 9014 | -5/Factory | Discovered new exit (range 17) 9111 | -5/Factory | Identified exit to Factory 9129 | -5/Factory | Entered another Factory area 9129 | -4/Factory | Evolved 2 slots: Utility x2 9226 | -4/Factory | Build established: Scavenger-Skirmisher 9322 | -4/Factory | Discovered new exit (range 9) 9332 | -4/Factory | Identified exit to Upper Caves 9338 | -4/Factory | Entered Upper Caves 9341 | -4/Upper Caves | A Derelict revealed a hidden shortcut to "reach the base" 9341 | -4/Upper Caves | Identified exit to Warlord 9343 | -4/Upper Caves | Entered Warlord 9403 | -4/Warlord | System corruption cleaned by Quarantine Array 9533 | -4/Warlord | Met Warlord 9558 | -4/Warlord | Warlord's base attacked by MAIN.C 9596 | -4/Warlord | Opened Warlord's prototype stash 9616 | -4/Warlord | Found Prototype Hackware 9616 | -4/Warlord | Identified System Mapper 9622 | -4/Warlord | Found Prototype Processor 9622 | -4/Warlord | Identified Spectral Analyzer 9625 | -4/Warlord | Found Prototype Device 9625 | -4/Warlord | Identified Thermal Barrier 9831 | -4/Warlord | Opened side exit 9908 | -4/Warlord | Warlord forces counterattacked 10056 | -4/Warlord | Lost 3 parts (1u2w) 10089 | -4/Warlord | Spotted Striker 10238 | -4/Warlord | Discovered new exit (range 8) 10244 | -4/Warlord | Identified exit to Proximity Caves 10273 | -4/Warlord | Entered Proximity Caves 10522 | -3/Proximity Caves | Lost 11 parts (1p6n1u3w) 10801 | -3/Proximity Caves | Build established: Scavenger-Gunner 10867 | -3/Proximity Caves | Discovered new exit (range 10) 10875 | -3/Proximity Caves | Identified exit to Research 10876 | -3/Proximity Caves | Entered Research 10876 | -3/Research | Evolved 2 slots: Utility x1, Weapon x1 10962 | -3/Research | Identified exit to Research 11195 | -3/Research | Entered another Research area 11195 | -2/Research | Warlord forces began assault on 0b10 11195 | -2/Research | Evolved 2 slots: Propulsion x1, Utility x1 11305 | -2/Research | Research machine network offline 11418 | -2/Research | Build established: Scavenger-Mutant 11535 | -2/Research | Borebot progress halted 11617 | -2/Research | Spotted Striker 11636 | -2/Research | Borebot progress halted 11698 | -2/Research | Spotted Executioner 11725 | -2/Research | Spotted Executioner 11759 | -2/Research | System corruption reached 10% 11781 | -2/Research | Released all parts (9) 11815 | -2/Research | Lost 16 parts (1p5n4u6w) 11841 | -2/Research | P-80 Master assimilated allied K7-JUQ(S) 11848 | -2/Research | P-80 Master assimilated allied RB-EX0(S) 11893 | -2/Research | Core integrity fell below 50% 11903 | -2/Research | Lost 4 parts (1u3w) 11926 | -2/Research | Core integrity fell below 20% 11974 | -2/Research | Destroyed by H-88 Terminator with KE Penetrator Last Messages --------------- 11919_ Slug penetrates Earth. 11924_ IB-5W0(T) shreds Earth. 11925_ Penetrated by Slug. 11928_ IB-5W0(T) shreds Earth. 11939_ System corrupted: IFF burst signal emitted. 11939_ IB-5W0(T) shreds Earth. 11941_ Penetrated by Slug. 11943_ IB-5W0(T) shreds Earth. 11946_ Penetrated by Slug. 11946_ IB-5W0(T) shreds Earth. 11948_ Penetrated by Slug. 11950_ IB-5W0(T) shreds Earth. 11954_ Slug penetrates Earth. 11958_ IB-5W0(T) shreds Earth. 11962_ Penetrated by Slug. 11964_ PYJW7JG93UV%3CF:F5TKAB 11965_ IB-5W0(T) shreds Earth. 11968_ Slug penetrates Earth. 11968_ Penetrated by Slug. 11969_ IB-5W0(T) shreds Earth. Map ----- +----------------------------------------------------+ | ?????????????????????????????????????????????????? | | ?????????????????????????????????????????????????? | | ?????????????????????????????????????????????????? | | ?????????????????????????????????????????????????? | | ?????????????????????????????????????????????????? | | ?????????????????????????????????????????????????? | | ?????????????????????????????????????????????????? | | ?????????????????????????????????????????????????? | | ?????????????????????????????????????????????????? | | ?????????????????????????????????????????????????? | | ?????????????????????????????????????????????????? | | ?????????????????????????????????????????????????? | | ?????????????????????????????????????????????????? | | ?????????????????????????????????????????????????? | | ?????????????????????????????????????????????????? | | ?????????????????????????????????????????????????? | | ?????????????????????????????????????????????????? | | ?????????????????????????????????????????????????? | | ?????????????????????????????????????????????????? | | ?????????????????????????????????????????????????? | | ?????????????????????????????????????????????????? | | ??????????#?##???????????????????????????????????? | | ########### ################??????????????????? | | TTT#??????????????????? | | TTT#??????????????????? | | @ TTT#??????????????????? | | ################ ##############??????????????????? | | ???????????????###???????????????????????????????? | | ?????????????????????????????????????????????????? | | ?????????????????????????????????????????????????? | | ?????????????????????????????????????????????????? | | ?????????????????????????????????????????????????? | | ?????????????????????????????????????????????????? | | ?????????????????????????????????????????????????? | | ?????????????????????????????????????????????????? | | ?????????????????????????????????????????????????? | | ?????????????????????????????????????????????????? | | ?????????????????????????????????????????????????? | | ?????????????????????????????????????????????????? | | ?????????????????????????????????????????????????? | | ?????????????????????????????????????????????????? | | ?????????????????????????????????????????????????? | | ?????????????????????????????????????????????????? | | ?????????????????????????????????????????????????? | | ?????????????????????????????????????????????????? | | ?????????????????????????????????????????????????? | | ?????????????????????????????????????????????????? | | ?????????????????????????????????????????????????? | | ?????????????????????????????????????????????????? | | ?????????????????????????????????????????????????? | +----------------------------------------------------+ Best States ------------- Heat Dissipation 68 Energy Generation 21 Energy Capacity 1770 Matter Stores 300 Matter Capacity 300 Sight Range 24 Terrain Scan Range 20 Terrain Scan Density 410 Jamming Range 8 Armor Coverage 525 Resistance: TH 50 Evasion (%) 50 Targeting Accuracy 14 Armor Integrity Analysis 50 Recoil Reduction 2 Offensive Hacking 32 Item Schematics ----------------- Aluminum Leg | -8/Materials | Hacked Magnetic Acceleration Cannon | -8/Recycling | Hacked Combat Drone Bay | -6/Data Miner | Free Lgt. Regenerative Plating | -6/Data Miner | Free Exp. Flexi-carbon Leg | -6/Data Miner | Free Cmb. Gravmag System | -6/Data Miner | Free Exp. Cesium-ion Thruster | -6/Data Miner | Free Exp. Terrain Scanner | -6/Data Miner | Free Tactical Coordination Suite | -6/Data Miner | Free Exp. ECM Suite | -6/Data Miner | Free Cloaking Device | -6/Data Miner | Free Kinetic Spear | -6/Data Miner | Free Robot Schematics ------------------ S-27 Virus | -6/Data Miner | Free G-50 Soldier | -6/Data Miner | Free X-72 Disruptor | -6/Data Miner | Free H-66 Slayer | -6/Data Miner | Free P-70 Sage | -6/Data Miner | Free I-36 Angel | -6/Data Miner | Free I-47 Archangel | -6/Data Miner | Free Fabricated ------------ Nothing Alien Tech Used ----------------- None Achievements -------------- Charge!!! Just Shoot The Terminal Reappropriation Challenges ------------ None Game ------ Seed ImpulseTransportBattery Manual? 0 Play Time 03:33:34 Cumulative 77.3 hours Start 2020.10.11 @ 13:15:22 End 2020.10.12 @ 15:23:09 Sessions 5 Manual Loads 0 Difficulty Rogue Special Mode None Game No. 60 Rogue 60 Adventurer 0 Explorer 0 Win Type - Total 0 Types 0/0/0/0/0/0/0/0/0 Lore% 52 Gallery% 51 Achievement% 41 Wizard Run 0 Options --------- ASCII 1 Keyboard 1 Movement Numpad Keybinds 0 Fullscreen 1 Font 18/SmallcapsGlow Map View 76x50 Tactical HUD 1 Map Filters NONE Filters NONE Steam 0 RUN: 09e26d1f-3839-4001-8f4a-40300723d682